[Event "*** Titled Tuesday Blitz"]
[Site "Chess.com"]
[Date "2021.02.09"]
[Round "5"]
[White "siciliannaga"]
[Black "Rytenko_V"]
[Result "1-0"]
[WhiteElo "2792"]
[BlackElo "2437"]
[TimeControl "180+1"]
[EndTime "10:56:58 PST"]
[Termination "siciliannaga won by resignation"]

1. g3 {[%clk 0:03:00.9]} 1... d5 {[%clk 0:02:59.3]} 2. Bg2 {[%clk 0:03:01.8]}
2... c5 {[%clk 0:02:56.9]} 3. Nf3 {[%clk 0:03:01.1]} 3... Nc6 {[%clk 0:02:57.2]}
4. d4 {[%clk 0:03:01.6]} 4... Bf5 {[%clk 0:02:49.4]} 5. O-O {[%clk 0:03:00.5]}
5... e6 {[%clk 0:02:49.3]} 6. c4 {[%clk 0:03:00.5]} 6... Nf6 {[%clk 0:02:48.1]}
7. Qa4 {[%clk 0:02:55.7]} 7... Qd7 {[%clk 0:02:27.3]} 8. cxd5 {[%clk 0:02:43.5]}
8... Nxd5 {[%clk 0:02:17.4]} 9. Rd1 {[%clk 0:02:41.7]} 9... Rd8 {[%clk
0:01:15.8]} 10. Nc3 {[%clk 0:02:14.6]} 10... Nxd4 {[%clk 0:01:07.1]} 11. Qxd7+
{[%clk 0:02:05.7]} 11... Rxd7 {[%clk 0:01:08]} 12. Nxd4 {[%clk 0:02:03.7]} 12...
Nxc3 {[%clk 0:00:30.7]} 13. bxc3 {[%clk 0:02:04.6]} 13... cxd4 {[%clk
0:00:30.9]} 14. Rxd4 {[%clk 0:02:02.9]} 14... Bc5 {[%clk 0:00:10]} 15. Rxd7
{[%clk 0:01:58]} 15... Kxd7 {[%clk 0:00:10.9]} 16. Bxb7 {[%clk 0:01:54.1]} 16...
Rb8 {[%clk 0:00:07.5]} 17. Ba6 {[%clk 0:01:52.4]} 17... Kc7 {[%clk 0:00:04]} 18.
Bd3 {[%clk 0:01:48.8]} 18... Bg6 {[%clk 0:00:03.3]} 19. Kf1 {[%clk 0:01:41.3]}
19... a5 {[%clk 0:00:02.6]} 20. f3 {[%clk 0:01:34.3]} 20... Kc6 {[%clk
0:00:02.7]} 21. e4 {[%clk 0:01:33.7]} 21... a4 {[%clk 0:00:02.3]} 22. Ke2 {[%clk
0:01:32.6]} 22... a3 {[%clk 0:00:02.1]} 23. Rb1 {[%clk 0:01:32]} 23... Rxb1
{[%clk 0:00:01.6]} 24. Bxb1 {[%clk 0:01:32.9]} 24... f6 {[%clk 0:00:02.2]} 25.
Bc2 {[%clk 0:01:29.4]} 25... Bf7 {[%clk 0:00:03.1]} 26. Bb3 {[%clk 0:01:29.7]}
26... Kd7 {[%clk 0:00:02.3]} 27. Kd3 {[%clk 0:01:29.4]} 27... Be8 {[%clk
0:00:02.8]} 28. Kc4 {[%clk 0:01:25.2]} 28... Bg1 {[%clk 0:00:02.2]} 29. Ba4+
{[%clk 0:01:21.3]} 29... Ke7 {[%clk 0:00:02.4]} 30. Bxe8 {[%clk 0:01:22.2]}
30... Kxe8 {[%clk 0:00:02.8]} 31. h3 {[%clk 0:01:22.9]} 31... Bh2 {[%clk
0:00:02.9]} 32. g4 {[%clk 0:01:23.3]} 32... Bd6 {[%clk 0:00:03.5]} 33. Kb3
{[%clk 0:01:23.8]} 33... Kd7 {[%clk 0:00:04.2]} 34. Bxa3 {[%clk 0:01:24.4]}
34... Be5 {[%clk 0:00:04.8]} 35. Bf8 {[%clk 0:01:22.6]} 35... g6 {[%clk
0:00:05.2]} 36. a4 {[%clk 0:01:22.3]} 36... Kc6 {[%clk 0:00:05.9]} 37. Kc4
{[%clk 0:01:19.2]} 37... h5 {[%clk 0:00:06.1]} 38. a5 {[%clk 0:01:17.4]} 38...
Bc7 {[%clk 0:00:05.7]} 39. Bb4 {[%clk 0:01:16.5]} 39... hxg4 {[%clk 0:00:05.4]}
40. fxg4 {[%clk 0:01:13.7]} 40... Bb8 {[%clk 0:00:05.2]} 41. h4 {[%clk 0:01:13]}
41... f5 {[%clk 0:00:05.6]} 42. exf5 {[%clk 0:01:12.7]} 42... exf5 {[%clk
0:00:06.5]} 43. gxf5 {[%clk 0:01:13.2]} 43... gxf5 {[%clk 0:00:07.4]} 44. h5
{[%clk 0:01:13.7]} 44... Bf4 {[%clk 0:00:07.7]} 45. Kd4 {[%clk 0:01:12.5]} 45...
Bh6 {[%clk 0:00:07.4]} 46. Ke5 {[%clk 0:01:10.3]} 46... f4 {[%clk 0:00:08.3]}
47. Ke4 {[%clk 0:01:10.9]} 47... Kb5 {[%clk 0:00:08.4]} 48. Kf3 {[%clk
0:01:10.8]} 48... Bg5 {[%clk 0:00:08.4]} 49. c4+ {[%clk 0:01:10.1]} 49... Kxb4
{[%clk 0:00:08]} 50. a6 {[%clk 0:01:10.4]} 1-0

[Event "*** Titled Tuesday Blitz"]
[Site "Chess.com"]
[Date "2021.02.09"]
[Round "5"]
[White "exoticprincess"]
[Black "Vanina1989"]
[Result "1-0"]
[WhiteElo "2849"]
[BlackElo "2712"]
[TimeControl "180+1"]
[EndTime "10:57:00 PST"]
[Termination "exoticprincess won by checkmate"]

1. d4 {[%clk 0:03:00.9]} 1... d5 {[%clk 0:02:59.4]} 2. Nc3 {[%clk 0:03:00.8]}
2... c6 {[%clk 0:02:58]} 3. Bf4 {[%clk 0:03:00.9]} 3... Bf5 {[%clk 0:02:57.6]}
4. f3 {[%clk 0:02:59.9]} 4... e6 {[%clk 0:02:56.9]} 5. e4 {[%clk 0:02:59.4]}
5... Bg6 {[%clk 0:02:57.1]} 6. a3 {[%clk 0:02:58.8]} 6... Be7 {[%clk 0:02:48]}
7. Qd2 {[%clk 0:02:53]} 7... Nf6 {[%clk 0:02:47.5]} 8. e5 {[%clk 0:02:42.5]}
8... Nfd7 {[%clk 0:02:47.3]} 9. Nge2 {[%clk 0:02:36.4]} 9... c5 {[%clk
0:02:44.4]} 10. dxc5 {[%clk 0:02:31.5]} 10... Nc6 {[%clk 0:02:44]} 11. Nd4
{[%clk 0:02:18.4]} 11... Ncxe5 {[%clk 0:02:33.1]} 12. Bxe5 {[%clk 0:02:02.7]}
12... Nxe5 {[%clk 0:02:32.7]} 13. Bb5+ {[%clk 0:02:03.6]} 13... Kf8 {[%clk
0:02:32.7]} 14. b4 {[%clk 0:01:58.2]} 14... b6 {[%clk 0:02:19.2]} 15. c6 {[%clk
0:01:46]} 15... a6 {[%clk 0:02:12.5]} 16. Be2 {[%clk 0:01:43]} 16... b5 {[%clk
0:02:08.4]} 17. f4 {[%clk 0:01:37.5]} 17... Nc4 {[%clk 0:02:02.1]} 18. Bxc4
{[%clk 0:01:37.3]} 18... dxc4 {[%clk 0:02:00.5]} 19. O-O {[%clk 0:01:31.3]}
19... Qb6 {[%clk 0:01:57.1]} 20. Kh1 {[%clk 0:01:23.4]} 20... Rd8 {[%clk
0:01:56.1]} 21. Rad1 {[%clk 0:01:22.1]} 21... Bf6 {[%clk 0:01:56]} 22. Nce2
{[%clk 0:01:20.9]} 22... Bh5 {[%clk 0:01:51.5]} 23. Qe3 {[%clk 0:01:10.8]} 23...
Qc7 {[%clk 0:01:46.4]} 24. Nxe6+ {[%clk 0:01:03.1]} 24... fxe6 {[%clk
0:01:45.2]} 25. Rxd8+ {[%clk 0:01:02]} 25... Bxd8 {[%clk 0:01:38.3]} 26. Qc5+
{[%clk 0:01:01.9]} 26... Be7 {[%clk 0:01:22.4]} 27. Qxh5 {[%clk 0:01:02.8]}
27... Qxc6 {[%clk 0:01:17.6]} 28. Nd4 {[%clk 0:01:01]} 28... Qd5 {[%clk
0:01:14.6]} 29. f5 {[%clk 0:00:52]} 29... Bf6 {[%clk 0:00:58.7]} 30. Nxe6+
{[%clk 0:00:51.2]} 30... Ke7 {[%clk 0:00:59]} 31. h3 {[%clk 0:00:40.8]} 31...
Rc8 {[%clk 0:00:53.6]} 32. Qxh7 {[%clk 0:00:38.7]} 32... Qe5 {[%clk 0:00:49.3]}
33. Nf4 {[%clk 0:00:36.8]} 33... Kd7 {[%clk 0:00:46]} 34. Qh5 {[%clk 0:00:33]}
34... Kc7 {[%clk 0:00:43.3]} 35. Qf3 {[%clk 0:00:32.7]} 35... Kb8 {[%clk
0:00:40.7]} 36. Ne6 {[%clk 0:00:32.3]} 36... Qb2 {[%clk 0:00:22]} 37. Nc5 {[%clk
0:00:29.1]} 37... a5 {[%clk 0:00:18.4]} 38. Qb7# {[%clk 0:00:28]} 1-0

[Event "*** Titled Tuesday Blitz"]
[Site "Chess.com"]
[Date "2021.02.09"]
[Round "5"]
[White "gross-aleks"]
[Black "alexrustemov"]
[Result "0-1"]
[WhiteElo "2564"]
[BlackElo "2759"]
[TimeControl "180+1"]
[EndTime "10:57:00 PST"]
[Termination "alexrustemov won by resignation"]

1. c4 {[%clk 0:03:00.9]} 1... c5 {[%clk 0:02:57.9]} 2. g3 {[%clk 0:03:00.5]}
2... g6 {[%clk 0:02:57.4]} 3. Bg2 {[%clk 0:03:00.7]} 3... Bg7 {[%clk 0:02:58.1]}
4. Nc3 {[%clk 0:03:01]} 4... Nc6 {[%clk 0:02:58.5]} 5. d3 {[%clk 0:03:00.6]}
5... b6 {[%clk 0:02:58.1]} 6. f4 {[%clk 0:02:54.9]} 6... Bb7 {[%clk 0:02:53.9]}
7. e4 {[%clk 0:02:55]} 7... d6 {[%clk 0:02:48.5]} 8. Be3 {[%clk 0:02:51.8]} 8...
Nf6 {[%clk 0:02:48]} 9. g4 {[%clk 0:02:34.4]} 9... h5 {[%clk 0:02:34]} 10. g5
{[%clk 0:02:34]} 10... Nd7 {[%clk 0:02:33.2]} 11. Nf3 {[%clk 0:02:31.7]} 11...
O-O {[%clk 0:02:28.4]} 12. Qd2 {[%clk 0:02:29.1]} 12... a6 {[%clk 0:02:27.2]}
13. O-O {[%clk 0:02:27.1]} 13... b5 {[%clk 0:02:22]} 14. cxb5 {[%clk 0:02:24.6]}
14... axb5 {[%clk 0:02:22.9]} 15. Nxb5 {[%clk 0:02:23.4]} 15... Qb6 {[%clk
0:02:19.2]} 16. Nc3 {[%clk 0:02:22.7]} 16... Rfb8 {[%clk 0:02:18.8]} 17. b3
{[%clk 0:01:40.5]} 17... Ra3 {[%clk 0:02:08.3]} 18. Na4 {[%clk 0:01:35.1]} 18...
Qb4 {[%clk 0:02:02]} 19. Rad1 {[%clk 0:01:27]} 19... Ba6 {[%clk 0:01:48.9]} 20.
Qc2 {[%clk 0:01:18.6]} 20... Qa5 {[%clk 0:01:41.5]} 21. Bd2 {[%clk 0:01:09.9]}
21... Nb4 {[%clk 0:01:38.8]} 22. Bxb4 {[%clk 0:00:48.2]} 22... Qxb4 {[%clk
0:01:38.3]} 23. Bh3 {[%clk 0:00:35.7]} 23... Bb5 {[%clk 0:01:37.4]} 24. Rf2
{[%clk 0:00:28.3]} 24... Bxa4 {[%clk 0:01:30.2]} 25. bxa4 {[%clk 0:00:29]} 25...
Nb6 {[%clk 0:01:23.4]} 26. e5 {[%clk 0:00:19.9]} 26... Qxa4 {[%clk 0:01:22.6]}
27. exd6 {[%clk 0:00:18.6]} 27... Qxc2 {[%clk 0:01:20.7]} 28. Rxc2 {[%clk
0:00:18]} 28... exd6 {[%clk 0:01:21.3]} 29. f5 {[%clk 0:00:18.9]} 29... Nd5
{[%clk 0:01:19.5]} 30. f6 {[%clk 0:00:18.8]} 30... Bf8 {[%clk 0:01:19.2]} 31.
Re1 {[%clk 0:00:16.3]} 31... Rxd3 {[%clk 0:01:16.3]} 32. Bg2 {[%clk 0:00:13.2]}
32... Nf4 {[%clk 0:01:15.7]} 33. Nd2 {[%clk 0:00:08.3]} 33... d5 {[%clk
0:01:11.5]} 34. Nb3 {[%clk 0:00:08.1]} 34... c4 {[%clk 0:01:09.8]} 35. Na5
{[%clk 0:00:08.2]} 35... Bb4 {[%clk 0:01:04.5]} 36. Nc6 {[%clk 0:00:07.7]} 36...
Bxe1 {[%clk 0:00:57.2]} 37. Nxb8 {[%clk 0:00:08.1]} 37... Rd1 {[%clk 0:00:54]}
38. Bf3 {[%clk 0:00:07]} 38... Ra1 {[%clk 0:00:51.1]} 39. Nd7 {[%clk 0:00:04.3]}
39... Bh4+ {[%clk 0:00:46.5]} 0-1

[Event "*** Titled Tuesday Blitz"]
[Site "Chess.com"]
[Date "2021.02.09"]
[Round "5"]
[White "klimkoj"]
[Black "Rogarcia1"]
[Result "1-0"]
[WhiteElo "2553"]
[BlackElo "2277"]
[TimeControl "180+1"]
[EndTime "10:57:00 PST"]
[Termination "klimkoj won on time"]

1. e4 {[%clk 0:02:50.9]} 1... d5 {[%clk 0:02:55.9]} 2. exd5 {[%clk 0:02:50.5]}
2... Qxd5 {[%clk 0:02:56.2]} 3. Nc3 {[%clk 0:02:50.3]} 3... Qa5 {[%clk
0:02:54.6]} 4. d4 {[%clk 0:02:48.9]} 4... Nf6 {[%clk 0:02:53.2]} 5. Bd3 {[%clk
0:02:46]} 5... Bg4 {[%clk 0:02:48]} 6. Ne2 {[%clk 0:02:37.9]} 6... e6 {[%clk
0:02:45.2]} 7. O-O {[%clk 0:02:34.6]} 7... Nc6 {[%clk 0:02:35.2]} 8. Be3 {[%clk
0:02:31.8]} 8... Bb4 {[%clk 0:02:18.4]} 9. f3 {[%clk 0:02:27.8]} 9... Bf5 {[%clk
0:02:12.4]} 10. a3 {[%clk 0:02:19.6]} 10... Bxc3 {[%clk 0:02:05.5]} 11. Nxc3
{[%clk 0:02:20.5]} 11... Bxd3 {[%clk 0:01:58]} 12. Qxd3 {[%clk 0:02:17.9]} 12...
O-O {[%clk 0:01:52.2]} 13. d5 {[%clk 0:01:47]} 13... Ne7 {[%clk 0:00:40.9]} 14.
b4 {[%clk 0:01:26.7]} 14... Qa6 {[%clk 0:00:40.3]} 15. Qxa6 {[%clk 0:01:26.3]}
15... bxa6 {[%clk 0:00:40]} 16. dxe6 {[%clk 0:01:26.7]} 16... fxe6 {[%clk
0:00:40.9]} 17. Bc5 {[%clk 0:01:26.5]} 17... Rfe8 {[%clk 0:00:39.8]} 18. Rfe1
{[%clk 0:01:20.1]} 18... Ned5 {[%clk 0:00:37.2]} 19. Ne4 {[%clk 0:01:18.7]}
19... Nxe4 {[%clk 0:00:29.6]} 20. Rxe4 {[%clk 0:01:16.3]} 20... Kf7 {[%clk
0:00:28.9]} 21. Rae1 {[%clk 0:01:15.4]} 21... Nb6 {[%clk 0:00:18.4]} 22. Bd4
{[%clk 0:01:08.6]} 22... Rad8 {[%clk 0:00:15.4]} 23. Rg4 {[%clk 0:01:03.1]}
23... g6 {[%clk 0:00:12.8]} 24. Rf4+ {[%clk 0:01:02.2]} 24... Kg8 {[%clk
0:00:12.7]} 25. h4 {[%clk 0:00:46.4]} 25... Nd5 {[%clk 0:00:08.6]} 26. Rg4
{[%clk 0:00:45.1]} 26... Kf7 {[%clk 0:00:07.7]} 27. h5 {[%clk 0:00:44.4]} 27...
Rd7 {[%clk 0:00:03.6]} 28. hxg6+ {[%clk 0:00:43.6]} 28... hxg6 {[%clk
0:00:03.7]} 29. Be5 {[%clk 0:00:44]} 29... c6 {[%clk 0:00:00.3]} 30. Kf2 {[%clk
0:00:34.3]} 1-0

[Event "*** Titled Tuesday Blitz"]
[Site "Chess.com"]
[Date "2021.02.09"]
[Round "5"]
[White "noblerone"]
[Black "LEGENYA1998"]
[Result "1/2-1/2"]
[WhiteElo "2412"]
[BlackElo "2245"]
[TimeControl "180+1"]
[EndTime "10:57:01 PST"]
[Termination "Game drawn by repetition"]

1. d4 {[%clk 0:03:00.9]} 1... Nf6 {[%clk 0:02:59.6]} 2. Nf3 {[%clk 0:03:01.2]}
2... b6 {[%clk 0:02:56.4]} 3. Bg5 {[%clk 0:02:59.6]} 3... Ne4 {[%clk 0:02:54.6]}
4. Bh4 {[%clk 0:02:56.6]} 4... Bb7 {[%clk 0:02:54.3]} 5. Nbd2 {[%clk 0:02:56]}
5... d6 {[%clk 0:02:52.7]} 6. e3 {[%clk 0:02:53.3]} 6... g6 {[%clk 0:02:47.7]}
7. Bd3 {[%clk 0:02:49.9]} 7... Nxd2 {[%clk 0:02:47]} 8. Qxd2 {[%clk 0:02:50.8]}
8... Bg7 {[%clk 0:02:43.9]} 9. Qe2 {[%clk 0:02:28.3]} 9... O-O {[%clk
0:02:36.8]} 10. O-O {[%clk 0:02:22.3]} 10... Nd7 {[%clk 0:02:33.3]} 11. c3
{[%clk 0:02:07]} 11... Re8 {[%clk 0:02:24.5]} 12. Bc4 {[%clk 0:02:01.2]} 12...
Qc8 {[%clk 0:02:19]} 13. a4 {[%clk 0:01:52.9]} 13... a6 {[%clk 0:02:17.5]} 14.
Qc2 {[%clk 0:01:50.1]} 14... e5 {[%clk 0:02:16.1]} 15. Ng5 {[%clk 0:01:14.2]}
15... d5 {[%clk 0:02:10.3]} 16. Ba2 {[%clk 0:01:09.6]} 16... h6 {[%clk 0:02:09]}
17. Nf3 {[%clk 0:01:05.5]} 17... e4 {[%clk 0:02:04.6]} 18. Nd2 {[%clk
0:01:05.5]} 18... b5 {[%clk 0:01:57.1]} 19. f3 {[%clk 0:00:54.5]} 19... f5
{[%clk 0:01:54.5]} 20. fxe4 {[%clk 0:00:51.1]} 20... fxe4 {[%clk 0:01:53.7]} 21.
Nxe4 {[%clk 0:00:48.8]} 21... Kh7 {[%clk 0:01:53.8]} 22. Nf6+ {[%clk 0:00:42.4]}
22... Nxf6 {[%clk 0:01:52.8]} 23. Bxf6 {[%clk 0:00:43.3]} 23... Rxe3 {[%clk
0:01:51.7]} 24. Bxg7 {[%clk 0:00:43.1]} 24... Kxg7 {[%clk 0:01:51.7]} 25. Qf2
{[%clk 0:00:42.9]} 25... Qe8 {[%clk 0:01:49.3]} 26. Qf6+ {[%clk 0:00:40]} 26...
Kg8 {[%clk 0:01:45.2]} 27. axb5 {[%clk 0:00:33.8]} 27... axb5 {[%clk 0:01:45]}
28. Kh1 {[%clk 0:00:28]} 28... Re6 {[%clk 0:01:42.2]} 29. Qf4 {[%clk 0:00:27]}
29... Kg7 {[%clk 0:01:21.4]} 30. h3 {[%clk 0:00:27.2]} 30... Qe7 {[%clk
0:01:19.6]} 31. Bb3 {[%clk 0:00:25.4]} 31... Rxa1 {[%clk 0:01:16.7]} 32. Rxa1
{[%clk 0:00:26.3]} 32... Re1+ {[%clk 0:01:16.7]} 33. Rxe1 {[%clk 0:00:26]} 33...
Qxe1+ {[%clk 0:01:16.8]} 34. Kh2 {[%clk 0:00:26.9]} 34... Qe7 {[%clk 0:01:16.4]}
35. Kg3 {[%clk 0:00:24.2]} 35... g5 {[%clk 0:01:10.7]} 36. Qf3 {[%clk
0:00:20.5]} 36... Qd6+ {[%clk 0:01:10.1]} 37. Kf2 {[%clk 0:00:20.6]} 37... Qf6
{[%clk 0:01:08.7]} 38. Bc2 {[%clk 0:00:19.3]} 38... Qxf3+ {[%clk 0:01:08]} 39.
Kxf3 {[%clk 0:00:20.2]} 39... Kf6 {[%clk 0:01:08.3]} 40. g3 {[%clk 0:00:19.7]}
40... Bc8 {[%clk 0:01:07.8]} 41. h4 {[%clk 0:00:19.4]} 41... gxh4 {[%clk
0:01:07.5]} 42. gxh4 {[%clk 0:00:20.3]} 42... Bf5 {[%clk 0:01:08.1]} 43. Bb3
{[%clk 0:00:20.5]} 43... c6 {[%clk 0:01:08.2]} 44. Kf4 {[%clk 0:00:21]} 44...
Bb1 {[%clk 0:01:07.9]} 45. Bd1 {[%clk 0:00:21.2]} 45... Bf5 {[%clk 0:01:07.5]}
46. Bh5 {[%clk 0:00:21.5]} 46... Bd7 {[%clk 0:01:07.3]} 47. Bf3 {[%clk 0:00:21]}
47... Be6 {[%clk 0:01:04]} 48. Bg4 {[%clk 0:00:20]} 48... Bxg4 {[%clk
0:00:59.9]} 49. Kxg4 {[%clk 0:00:20.9]} 49... Kg6 {[%clk 0:01:00.1]} 50. h5+
{[%clk 0:00:19.8]} 50... Kf6 {[%clk 0:01:00.4]} 51. Kf4 {[%clk 0:00:20.3]} 51...
Ke6 {[%clk 0:01:00.8]} 52. Kg4 {[%clk 0:00:18.1]} 52... Kf6 {[%clk 0:01:01.2]}
53. Kf4 {[%clk 0:00:18.6]} 53... Ke6 {[%clk 0:01:01.6]} 54. Kg4 {[%clk 0:00:16]}
54... Kf6 {[%clk 0:01:02]} 1/2-1/2

[Event "*** Titled Tuesday Blitz"]
[Site "Chess.com"]
[Date "2021.02.09"]
[Round "5"]
[White "Tenamu"]
[Black "Ajedrez_con_German"]
[Result "1-0"]
[WhiteElo "2417"]
[BlackElo "2578"]
[TimeControl "180+1"]
[EndTime "10:57:03 PST"]
[Termination "Tenamu won on time"]

1. d4 {[%clk 0:03:00.9]} 1... g6 {[%clk 0:03:00.9]} 2. Nc3 {[%clk 0:02:58.6]}
2... Bg7 {[%clk 0:03:01.8]} 3. e4 {[%clk 0:02:57]} 3... d6 {[%clk 0:03:02]} 4.
f4 {[%clk 0:02:57.2]} 4... a6 {[%clk 0:03:02]} 5. Nf3 {[%clk 0:02:56.2]} 5... b5
{[%clk 0:03:01.7]} 6. Bd3 {[%clk 0:02:55.1]} 6... Bb7 {[%clk 0:03:00.5]} 7. O-O
{[%clk 0:02:54]} 7... Nd7 {[%clk 0:02:54.8]} 8. Re1 {[%clk 0:02:47.4]} 8... c5
{[%clk 0:02:54.1]} 9. Be3 {[%clk 0:02:46.1]} 9... Ngf6 {[%clk 0:02:47.6]} 10. e5
{[%clk 0:02:45.7]} 10... Ng4 {[%clk 0:02:45.3]} 11. exd6 {[%clk 0:02:43.6]}
11... O-O {[%clk 0:02:27]} 12. dxe7 {[%clk 0:02:17.1]} 12... Qxe7 {[%clk
0:02:26.4]} 13. Bf2 {[%clk 0:02:17.5]} 13... Qd6 {[%clk 0:01:46.8]} 14. dxc5
{[%clk 0:02:09.1]} 14... Nxc5 {[%clk 0:01:46.8]} 15. Bf1 {[%clk 0:01:24.4]}
15... Qxf4 {[%clk 0:01:13.6]} 16. Bg3 {[%clk 0:01:10.4]} 16... Qf5 {[%clk
0:00:56.5]} 17. Nh4 {[%clk 0:00:53.6]} 17... Qg5 {[%clk 0:00:41.2]} 18. Nf3
{[%clk 0:00:53.2]} 18... Qh5 {[%clk 0:00:31.2]} 19. h3 {[%clk 0:00:51.5]} 19...
Nf6 {[%clk 0:00:26.8]} 20. Ne5 {[%clk 0:00:51.4]} 20... Qxd1 {[%clk 0:00:25.9]}
21. Raxd1 {[%clk 0:00:52.3]} 21... Nce4 {[%clk 0:00:24.7]} 22. Nxe4 {[%clk
0:00:49.2]} 22... Nxe4 {[%clk 0:00:25.6]} 23. Bh2 {[%clk 0:00:48.6]} 23... Rfd8
{[%clk 0:00:22.5]} 24. c3 {[%clk 0:00:39.8]} 24... Nc5 {[%clk 0:00:09.2]} 25.
Rd4 {[%clk 0:00:32.6]} 25... Rxd4 {[%clk 0:00:08.2]} 26. cxd4 {[%clk 0:00:33.5]}
26... Ne6 {[%clk 0:00:08.5]} 27. Rc1 {[%clk 0:00:30.6]} 27... Nxd4 {[%clk
0:00:07.8]} 28. Rc7 {[%clk 0:00:30.3]} 28... Be4 {[%clk 0:00:03.7]} 29. Nxf7
{[%clk 0:00:25.5]} 29... Rf8 {[%clk 0:00:02.4]} 30. Nd6 {[%clk 0:00:20.5]} 1-0

[Event "*** Titled Tuesday Blitz"]
[Site "Chess.com"]
[Date "2021.02.09"]
[Round "5"]
[White "Zmeeed63"]
[Black "PotapovaM"]
[Result "1-0"]
[WhiteElo "2427"]
[BlackElo "2625"]
[TimeControl "180+1"]
[EndTime "10:57:04 PST"]
[Termination "Zmeeed63 won by checkmate"]

1. d4 {[%clk 0:02:56.9]} 1... Nf6 {[%clk 0:02:59.4]} 2. c4 {[%clk 0:02:56.1]}
2... e6 {[%clk 0:02:59.9]} 3. Nc3 {[%clk 0:02:55.1]} 3... Bb4 {[%clk 0:03:00.4]}
4. f3 {[%clk 0:02:55.4]} 4... d5 {[%clk 0:02:50.8]} 5. a3 {[%clk 0:02:54.3]}
5... Be7 {[%clk 0:02:50.2]} 6. e4 {[%clk 0:02:46.1]} 6... dxe4 {[%clk
0:02:50.4]} 7. fxe4 {[%clk 0:02:44.1]} 7... c5 {[%clk 0:02:50.9]} 8. d5 {[%clk
0:02:41.6]} 8... exd5 {[%clk 0:02:51.8]} 9. exd5 {[%clk 0:02:39.3]} 9... O-O
{[%clk 0:02:50.9]} 10. Nf3 {[%clk 0:02:37.9]} 10... Re8 {[%clk 0:02:50.8]} 11.
Be2 {[%clk 0:02:34.4]} 11... Bd6 {[%clk 0:02:38.2]} 12. O-O {[%clk 0:02:31.5]}
12... Nbd7 {[%clk 0:02:35.2]} 13. Bd3 {[%clk 0:02:30.1]} 13... a6 {[%clk
0:02:31.2]} 14. Bg5 {[%clk 0:02:26.1]} 14... h6 {[%clk 0:02:30.7]} 15. Bh4
{[%clk 0:02:24.4]} 15... Qc7 {[%clk 0:02:31.3]} 16. Kh1 {[%clk 0:02:20.3]} 16...
Ng4 {[%clk 0:02:30.5]} 17. h3 {[%clk 0:02:07.6]} 17... Ne3 {[%clk 0:02:29.8]}
18. Qe2 {[%clk 0:02:06.2]} 18... b5 {[%clk 0:01:31.7]} 19. Bf2 {[%clk
0:02:00.1]} 19... bxc4 {[%clk 0:01:28]} 20. Bxc4 {[%clk 0:02:00.3]} 20... Bf4
{[%clk 0:01:03.6]} 21. Nd1 {[%clk 0:01:47.8]} 21... Nxc4 {[%clk 0:00:47.9]} 22.
Qxe8+ {[%clk 0:01:48.7]} 22... Nf8 {[%clk 0:00:48.3]} 23. Qe4 {[%clk 0:01:42.4]}
23... Nb6 {[%clk 0:00:41.7]} 24. Nc3 {[%clk 0:01:42]} 24... Bd7 {[%clk
0:00:37.2]} 25. Bxc5 {[%clk 0:01:36]} 25... Re8 {[%clk 0:00:34.6]} 26. Bxb6
{[%clk 0:01:31.6]} 26... Qxb6 {[%clk 0:00:05.2]} 27. Qxf4 {[%clk 0:01:30.7]}
27... Ng6 {[%clk 0:00:04.4]} 28. Qd2 {[%clk 0:01:22.4]} 28... Rf8 {[%clk
0:00:04]} 29. Rae1 {[%clk 0:01:18.8]} 29... Qc7 {[%clk 0:00:03.4]} 30. d6 {[%clk
0:01:14]} 30... Qc8 {[%clk 0:00:03.6]} 31. Ne5 {[%clk 0:01:07]} 31... Nxe5
{[%clk 0:00:03.5]} 32. Rxe5 {[%clk 0:01:07.9]} 32... Be6 {[%clk 0:00:04.4]} 33.
Nd5 {[%clk 0:01:03.3]} 33... Kh8 {[%clk 0:00:04.9]} 34. Ne7 {[%clk 0:01:01]}
34... Qc4 {[%clk 0:00:05.4]} 35. Rf6 {[%clk 0:00:46.2]} 35... Qb3 {[%clk
0:00:03]} 36. Rxh6+ {[%clk 0:00:41.8]} 36... gxh6 {[%clk 0:00:03]} 37. Qxh6#
{[%clk 0:00:42.7]} 1-0

[Event "*** Titled Tuesday Blitz"]
[Site "Chess.com"]
[Date "2021.02.09"]
[Round "5"]
[White "MIJuanReyesRosa"]
[Black "jaramsdal"]
[Result "0-1"]
[WhiteElo "2106"]
[BlackElo "2304"]
[TimeControl "180+1"]
[EndTime "10:57:04 PST"]
[Termination "jaramsdal won on time"]

1. d4 {[%clk 0:02:58.9]} 1... Nf6 {[%clk 0:02:59.2]} 2. Nf3 {[%clk 0:02:58.5]}
2... e6 {[%clk 0:02:59.3]} 3. c4 {[%clk 0:02:55.7]} 3... d5 {[%clk 0:02:56.7]}
4. Nc3 {[%clk 0:02:55.5]} 4... c6 {[%clk 0:02:52.6]} 5. e3 {[%clk 0:02:54.3]}
5... Be7 {[%clk 0:02:47.4]} 6. Bd3 {[%clk 0:02:52]} 6... dxc4 {[%clk 0:02:45.6]}
7. Bxc4 {[%clk 0:02:51.5]} 7... b5 {[%clk 0:02:45.6]} 8. Bd3 {[%clk 0:02:51.8]}
8... a6 {[%clk 0:02:44.3]} 9. e4 {[%clk 0:02:47.7]} 9... c5 {[%clk 0:02:39.6]}
10. e5 {[%clk 0:02:36.8]} 10... Nd5 {[%clk 0:02:37.1]} 11. Ne4 {[%clk 0:02:12]}
11... cxd4 {[%clk 0:02:05.2]} 12. O-O {[%clk 0:02:05]} 12... Nc6 {[%clk
0:02:01]} 13. Bg5 {[%clk 0:02:02.3]} 13... f6 {[%clk 0:01:35.1]} 14. exf6 {[%clk
0:01:58.1]} 14... gxf6 {[%clk 0:01:35.1]} 15. Bh6 {[%clk 0:01:38.7]} 15... e5
{[%clk 0:01:35.3]} 16. Nh4 {[%clk 0:01:09.7]} 16... Be6 {[%clk 0:01:30.9]} 17.
Rc1 {[%clk 0:01:07]} 17... Qd7 {[%clk 0:01:27.6]} 18. Bg7 {[%clk 0:01:00.6]}
18... Rg8 {[%clk 0:01:26.8]} 19. Qh5+ {[%clk 0:00:59.3]} 19... Bf7 {[%clk
0:01:26.9]} 20. Qxh7 {[%clk 0:00:58.9]} 20... Nf4 {[%clk 0:01:10.2]} 21. Bxf6
{[%clk 0:00:45.9]} 21... Nxd3 {[%clk 0:01:09.5]} 22. Rxc6 {[%clk 0:00:15.3]}
22... Qxc6 {[%clk 0:01:02.2]} 23. Bxe7 {[%clk 0:00:15.4]} 23... Kxe7 {[%clk
0:00:53.9]} 24. Nf5+ {[%clk 0:00:15]} 24... Kf8 {[%clk 0:00:49.8]} 25. Nh6
{[%clk 0:00:07.8]} 25... Qg6 {[%clk 0:00:22.7]} 26. Qxg6 {[%clk 0:00:04.5]}
26... Rxg6 {[%clk 0:00:23.6]} 27. Nxf7 {[%clk 0:00:03]} 27... Kxf7 {[%clk
0:00:23.8]} 28. Rd1 {[%clk 0:00:02.9]} 28... Rc8 {[%clk 0:00:22]} 0-1